bitfinex-derivatives/quotes_BTCF0:USTF0_20250509
["timestamp","ask_amount","ask_price","bid_price","bid_amount"]
[1746815477373,0.07196,103260.0,103250.0,1.3649176]
[1746815477573,0.07196,103260.0,103250.0,1.36490662]
[1746815477981,0.2656361,103260.0,103250.0,1.006876]
[1746815478171,0.2974361,103260.0,103250.0,1.265036]
[1746815478371,0.2974361,103260.0,103250.0,1.46460662]
[1746815478571,0.2974361,103260.0,103250.0,1.46560662]
[1746815479378,0.2974361,103260.0,103250.0,1.46660662]
[1746815480178,0.4574361,103260.0,103250.0,1.46660662]
[1746815480480,0.4574361,103260.0,103250.0,1.138036]
[1746815481173,0.4574361,103260.0,103250.0,1.13804943]
[1746815482780,0.4574361,103260.0,103250.0,0.97798943]
[1746815483086,0.4574361,103260.0,103250.0,0.97800045]
[1746815483681,0.4574361,103260.0,103250.0,1.14557107]
[1746815483881,0.4574361,103260.0,103250.0,1.21007107]
[1746815484185,0.26376,103260.0,103250.0,1.21007107]
[1746815485186,0.10376,103260.0,103250.0,1.21007107]
[1746815485778,0.10376,103260.0,103250.0,1.23937107]
[1746815486084,0.26376,103260.0,103250.0,1.23937107]
[1746815486280,0.26376,103260.0,103250.0,1.23937149]
[1746815486584,0.23196,103260.0,103250.0,1.23937142]
[1746815487691,0.2247,103260.0,103250.0,1.23937142]
[1746815488396,0.2247,103260.0,103250.0,1.23936944]
[1746815489188,0.0647,103260.0,103250.0,1.23936944]
[1746815490097,0.2247,103260.0,103250.0,1.23936944]
[1746815490900,0.23196,103260.0,103250.0,1.23936944]
[1746815491786,0.23196,103260.0,103250.0,1.23936755]
[1746815492197,0.23196,103260.0,103250.0,1.23936788]
[1746815493297,0.07196,103260.0,103250.0,1.23936788]
[1746815494199,0.10376,103260.0,103250.0,1.23936788]
[1746815494698,0.2974361,103260.0,103250.0,1.30041726]
[1746815494905,0.2974361,103260.0,103250.0,1.26901726]
[1746815495205,0.4574361,103260.0,103250.0,1.26901726]
[1746815495591,0.4574361,103260.0,103250.0,1.23591726]
[1746815495792,0.4574361,103260.0,103250.0,1.10695726]
[1746815498403,0.4574361,103260.0,103250.0,1.09230251]
[1746815501406,0.4574361,103260.0,103250.0,1.1069754]
[1746815502306,0.4574361,103260.0,103250.0,1.10698278]
[1746815503909,0.4574361,103260.0,103250.0,1.10698395]
[1746815504105,0.4574361,103260.0,103250.0,1.13928395]
[1746815504601,0.4574361,103260.0,103250.0,0.77848395]
[1746815504905,0.4574361,103260.0,103250.0,1.50008395]
[1746815505106,0.55587077,103260.0,103250.0,1.50008395]
[1746815507305,0.55587077,103260.0,103250.0,1.50008632]
[1746815507698,0.55587077,103260.0,103250.0,1.46778632]
[1746815508298,0.55587077,103260.0,103250.0,1.49978632]
[1746815508906,0.55587077,103260.0,103250.0,1.49978587]
[1746815510504,0.55587077,103260.0,103250.0,1.66735649]
[1746815510704,0.55587077,103260.0,103250.0,1.69885649]
[1746815513204,0.39587077,103260.0,103250.0,1.69885649]
[1746815513406,0.39587077,103260.0,103250.0,0.97725649]
[1746815513606,0.39587077,103260.0,103250.0,1.33805438]
[1746815514110,0.55587077,103260.0,103250.0,1.33805438]
[1746815515111,0.39587077,103260.0,103250.0,1.33805438]
[1746815515611,0.39587077,103260.0,103250.0,1.33805402]
[1746815515908,0.39587077,103260.0,103250.0,1.28043634]
[1746815516214,0.20219467,103260.0,103250.0,1.28043634]
[1746815516408,0.39587077,103260.0,103250.0,1.28043634]
[1746815517012,0.39587077,103260.0,103250.0,1.26575545]
[1746815517312,0.20219467,103260.0,103250.0,1.28043904]
[1746815517508,0.39587077,103260.0,103250.0,1.28043904]
[1746815517809,0.17039467,103260.0,103250.0,1.39039198]
[1746815518015,0.17039467,103260.0,103250.0,1.28043904]
[1746815518212,0.17039467,103260.0,103250.0,1.1704861]
[1746815518412,0.17039467,103260.0,103250.0,1.28043904]
[1746815518913,0.17039467,103260.0,103250.0,1.28043754]
[1746815520906,0.17039467,103260.0,103250.0,1.26575545]
[1746815523213,0.17039467,103260.0,103250.0,1.29505545]
[1746815523813,0.17039467,103260.0,103250.0,1.30995454]
[1746815525015,0.17039467,103260.0,103250.0,1.18099454]
[1746815525317,0.17039467,103260.0,103250.0,1.43885104]
[1746815525912,0.14029467,103260.0,103250.0,1.43885104]
[1746815526111,0.10969467,103260.0,103250.0,1.54880398]
[1746815526912,0.10969467,103260.0,103250.0,1.54879806]
[1746815527117,0.10969467,103260.0,103250.0,1.70879806]
[1746815527416,0.01126,103260.0,103250.0,1.70879806]
[1746815528118,0.01126,103260.0,103250.0,1.54879806]
[1746815529717,0.01126,103260.0,103250.0,1.49638274]
[1746815530419,0.01126,103260.0,103250.0,1.49637215]
[1746815531519,0.04196,103260.0,103250.0,1.49637215]
[1746815532713,0.07206,103260.0,103250.0,1.49633215]
[1746815533015,0.10416,103260.0,103250.0,1.49633215]
[1746815533217,0.26416,103260.0,103250.0,1.49633215]
[1746815535122,0.26416,103260.0,103250.0,1.33815215]
[1746815535325,0.26416,103260.0,103250.0,1.29950159]
[1746815535620,0.26416,103260.0,103250.0,1.46698838]
[1746815536331,0.26416,103260.0,103250.0,1.29949782]
[1746815536524,0.26416,103260.0,103250.0,1.26799782]
[1746815536721,0.4578361,103260.0,103250.0,1.26799782]
[1746815536923,0.4578361,103260.0,103250.0,1.23599782]
[1746815537424,0.4578361,103260.0,103250.0,1.2360018]
[1746815537624,0.4578361,103260.0,103250.0,1.40349236]
[1746815539525,0.26416,103260.0,103250.0,1.40349236]
[1746815539722,0.4578361,103260.0,103250.0,1.40349236]
[1746815540819,0.4578361,103260.0,103250.0,1.40349938]
[1746815542426,0.26416,103260.0,103250.0,1.40349938]
[1746815542615,0.26416,103260.0,103250.0,1.76430286]
[1746815543226,0.10416,103260.0,103250.0,1.76430286]
[1746815544131,0.26416,103260.0,103250.0,1.76430286]
[1746815544524,0.4578361,103260.0,103250.0,1.76430286]
[1746815544724,0.26416,103260.0,103250.0,1.76430286]
[1746815545028,0.4578361,103260.0,103250.0,1.76430286]
[1746815545530,0.26416,103260.0,103250.0,1.76430286]
[1746815545829,0.4578361,103260.0,103250.0,1.76430286]
[1746815546024,0.4578361,103260.0,103250.0,1.76430855]
[1746815546726,0.26416,103260.0,103250.0,1.76430855]
[1746815547730,0.26416,103260.0,103250.0,1.76431103]
[1746815548030,0.4578361,103260.0,103250.0,1.76431103]
[1746815548230,0.2978361,103260.0,103250.0,1.76431103]
[1746815549233,0.4578361,103260.0,103250.0,1.76431103]
[1746815549632,0.26416,103260.0,103250.0,1.76431103]
[1746815549820,0.26416,103260.0,103250.0,1.73806789]
[1746815550435,0.4578361,103260.0,103250.0,1.73806789]
[1746815550630,0.26416,103260.0,103250.0,1.73806789]
[1746815550832,0.26416,103260.0,103250.0,1.77116789]
[1746815554652,0.26416,103260.0,103250.0,1.75624993]
[1746815554952,0.26416,103260.0,103250.0,1.77098513]
[1746815558357,0.26416,103260.0,103250.0,1.77098756]
[1746815559352,0.26416,103260.0,103250.0,1.77098893]
[1746815559548,0.26416,103260.0,103250.0,1.88093635]
[1746815559744,0.16,103260.0,103250.0,1.91023635]
[1746815560148,0.0329,103270.0,103260.0,0.1936761]
[1746815560355,0.0329,103270.0,103260.0,1.19060994]
[1746815560753,0.0639,103270.0,103260.0,1.28745755]
[1746815561156,0.0649,103270.0,103260.0,1.28745755]
[1746815561456,0.001,103270.0,103260.0,1.28745755]
[1746815561853,0.002,103270.0,103260.0,1.28745755]
[1746815562157,0.162,103270.0,103260.0,1.28745755]
[1746815565461,0.162,103270.0,103260.0,0.92665755]
[1746815565661,0.162,103270.0,103260.0,1.64825755]
[1746815566860,0.162,103270.0,103260.0,1.64825153]
[1746815567063,0.162,103270.0,103260.0,1.75819895]
[1746815567261,0.002,103270.0,103260.0,1.80825153]
[1746815567966,0.001,103270.0,103260.0,1.80825153]
[1746815568159,0.161,103270.0,103260.0,1.64925153]
[1746815568359,0.16,103270.0,103260.0,1.65025153]
[1746815568664,0.16,103270.0,103260.0,1.65024562]
[1746815568965,0.16,103270.0,103260.0,1.76019304]
[1746815569157,0.1116397,103280.0,103270.0,0.1936574]
[1746815569352,0.0812397,103280.0,103270.0,1.45419931]
[1746815569759,0.0812397,103280.0,103270.0,1.55103754]
[1746815569968,0.0812397,103280.0,103270.0,3.05103097]
[1746815570465,0.0822397,103280.0,103270.0,3.05102541]
[1746815570965,0.0822397,103280.0,103270.0,3.05202541]
[1746815570966,0.00826,103280.0,103270.0,3.05202541]
[1746815571171,0.3934986,103280.0,103270.0,2.54301057]
[1746815571358,0.56814602,103280.0,103270.0,1.01071057]
[1746815571553,0.26456,103280.0,103270.0,1.12065799]
[1746815572060,0.4581986,103280.0,103270.0,1.15315799]
[1746815572467,0.4581986,103280.0,103270.0,1.18455799]
[1746815573870,0.4581986,103280.0,103270.0,1.24208365]
[1746815574364,0.26456,103280.0,103270.0,1.24208365]
[1746815574763,0.4581986,103280.0,103270.0,1.24208365]
[1746815575673,0.4581986,103280.0,103270.0,1.24208221]
[1746815576472,0.26456,103280.0,103270.0,1.24208221]
[1746815577874,0.4581986,103280.0,103270.0,1.24208221]
[1746815578472,0.4509386,103280.0,103270.0,1.24208221]
[1746815578772,0.4509386,103280.0,103270.0,1.23553216]
[1746815579071,0.4509386,103280.0,103270.0,1.23553439]
[1746815579261,0.4509386,103280.0,103270.0,1.23549439]
[1746815580867,0.4509386,103280.0,103270.0,1.40296702]
[1746815581371,0.4509386,103280.0,103270.0,1.23549697]
[1746815581672,0.62335297,103280.0,103270.0,1.23549697]
[1746815582172,0.62335297,103280.0,103270.0,0.96329563]
[1746815582473,0.62335297,103280.0,103270.0,1.09209563]
[1746815583074,0.42971437,103280.0,103270.0,1.12369563]
[1746815583374,0.62335297,103280.0,103270.0,1.12369563]
[1746815583876,0.42971437,103280.0,103270.0,1.29116568]
[1746815584076,0.42971437,103280.0,103270.0,1.33758014]
[1746815585085,0.39641437,103280.0,103270.0,1.53038014]
[1746815585375,0.23641437,103280.0,103270.0,1.53038014]
[1746815586077,0.39641437,103280.0,103270.0,1.37038014]
[1746815586269,0.2979797,103280.0,103270.0,1.49890014]
[1746815586465,0.2665797,103280.0,103270.0,1.49890014]
[1746815586667,0.2339797,103280.0,103270.0,2.99890014]
[1746815587168,0.0739797,103280.0,103270.0,2.9989083]
[1746815587772,0.1059797,103280.0,103270.0,2.83143825]
[1746815588072,0.3299797,103280.0,103270.0,2.9989083]
[1746815588273,0.3299797,103280.0,103270.0,2.63825825]
[1746815588475,0.3299797,103280.0,103270.0,2.76693825]
[1746815588877,0.5236183,103280.0,103270.0,2.73533825]
[1746815589068,0.5236183,103280.0,103270.0,1.23533825]
[1746815589269,0.5236183,103280.0,103270.0,0.97801825]
[1746815589472,0.5236183,103280.0,103270.0,1.10665825]
[1746815590373,0.4496386,103280.0,103270.0,1.10665825]
[1746815590567,0.4496386,103280.0,103270.0,1.10667167]
[1746815593580,0.61710865,103280.0,103270.0,0.68753604]
[1746815593777,0.61710865,103280.0,103270.0,0.32673604]
[1746815593976,0.61710865,103280.0,103270.0,0.88119344]
[1746815594175,0.61710865,103280.0,103270.0,0.52039344]
[1746815594986,0.61710865,103280.0,103270.0,0.51939344]
[1746815595284,0.61910865,103280.0,103270.0,0.51839344]
[1746815595480,0.4516386,103280.0,103270.0,0.51839344]
[1746815595680,0.258,103280.0,103270.0,0.97602229]
[1746815595983,0.258,103280.0,103270.0,1.30397234]
[1746815596178,0.258,103280.0,103270.0,1.33507234]
[1746815596480,0.258,103280.0,103270.0,1.46371234]
[1746815596688,0.258,103280.0,103270.0,1.49541234]
[1746815597080,0.257,103280.0,103270.0,1.49541234]
[1746815597287,0.257,103280.0,103270.0,1.49641234]
[1746815597478,0.257,103280.0,103270.0,1.49641609]
[1746815598084,0.256,103280.0,103270.0,1.49641609]
[1746815598379,0.256,103280.0,103270.0,1.49741609]
[1746815598575,0.192,103280.0,103270.0,1.49741609]
[1746815599282,0.16,103280.0,103270.0,1.4974149]
[1746815600591,0.1912,103280.0,103270.0,1.4974149]
[1746815601092,0.16,103280.0,103270.0,1.4974117]
[1746815603682,0.1902,103280.0,103270.0,1.4974117]
[1746815605085,0.16,103280.0,103270.0,1.4974117]
[1746815607689,0.19,103280.0,103270.0,1.4974117]
[1746815608185,0.19,103280.0,103270.0,1.49740589]
[1746815609298,0.19,103280.0,103270.0,1.49740493]
[1746815609796,0.19,103280.0,103270.0,1.497405]
[1746815610296,0.16,103280.0,103270.0,1.497405]
[1746815611103,0.16,103280.0,103270.0,2.997405]
[1746815611398,0.16,103280.0,103270.0,2.99740169]
[1746815611598,0.16,103280.0,103270.0,2.99740035]
[1746815612295,0.11239,103290.0,103280.0,0.1936386]
[1746815612495,0.11239,103290.0,103280.0,1.1502327]
[1746815613100,0.27239,103290.0,103280.0,1.24706155]
[1746815613585,0.27239,103290.0,103280.0,1.26131214]
[1746815613790,0.27339,103290.0,103280.0,1.26131214]
[1746815613994,0.27439,103290.0,103280.0,1.26131214]
[1746815616696,0.27439,103290.0,103280.0,2.76131214]
[1746815620300,0.27439,103290.0,103280.0,2.76130381]
[1746815621102,0.11439,103290.0,103280.0,2.76130381]
[1746815622302,0.27439,103290.0,103280.0,2.76130477]
[1746815623701,0.27439,103290.0,103280.0,2.76130844]
[1746815624700,0.27439,103290.0,103280.0,2.73040844]
[1746815624905,0.27439,103290.0,103280.0,2.69980844]
[1746815625303,0.26713,103290.0,103280.0,2.69980844]
[1746815625802,0.26713,103290.0,103280.0,1.19980844]
[1746815626297,0.26713,103290.0,103280.0,1.22980844]
[1746815627103,0.34108684,103290.0,103280.0,1.22980844]
[1746815627404,0.34108684,103290.0,103280.0,1.22982627]
[1746815628503,0.34108684,103290.0,103280.0,0.86902627]
[1746815628707,0.34108684,103290.0,103280.0,1.59062627]
[1746815629006,0.34108684,103290.0,103280.0,1.59063026]
[1746815629601,0.34108684,103290.0,103280.0,1.52853026]
[1746815629798,0.34834684,103290.0,103280.0,1.78553026]
[1746815630198,0.34834684,103290.0,103280.0,1.78553206]
[1746815630607,0.44678151,103290.0,103280.0,1.78553206]
[1746815630905,0.44678151,103290.0,103280.0,1.78553243]
[1746815631308,0.44678151,103290.0,103280.0,1.81673243]
[1746815631806,0.44678151,103290.0,103280.0,1.90109364]
[1746815632608,0.44678151,103290.0,103280.0,1.86883128]
[1746815633709,0.44678151,103290.0,103280.0,1.64910002]
[1746815634005,0.27439,103290.0,103280.0,1.85409393]
[1746815634608,0.27439,103290.0,103280.0,1.86882653]
[1746815635802,0.27439,103290.0,103280.0,1.86882679]
[1746815636409,0.27439,103290.0,103280.0,1.64909553]
[1746815636609,0.27439,103290.0,103280.0,1.86882679]
[1746815638511,0.27439,103290.0,103280.0,1.5992809]
[1746815638712,0.27439,103290.0,103280.0,1.7276809]
[1746815639216,0.27439,103290.0,103280.0,1.7579809]
[1746815639608,0.27439,103290.0,103280.0,1.86784653]
[1746815640516,0.27439,103290.0,103280.0,1.86785324]
[1746815640912,0.27439,103290.0,103280.0,1.93005324]
[1746815641112,0.27439,103290.0,103280.0,1.93005292]
[1746815641916,0.27439,103290.0,103280.0,1.93005366]
[1746815643118,0.27439,103290.0,103280.0,1.91531393]
[1746815655122,0.27439,103290.0,103280.0,1.47452267]
[1746815655423,0.34834684,103290.0,103280.0,1.5843883]
[1746815655816,0.34834684,103290.0,103280.0,1.6152883]
[1746815656018,0.54196674,103290.0,103280.0,1.6152883]
[1746815661234,0.34834684,103290.0,103280.0,1.6152883]
[1746815661434,0.34834684,103290.0,103280.0,1.72515393]
[1746815661735,0.34834684,103290.0,103280.0,1.78785393]
[1746815664324,0.28574684,103290.0,103280.0,1.78785393]
[1746815665034,0.28574684,103290.0,103280.0,3.28785393]
[1746815665736,0.12574684,103290.0,103280.0,3.28785393]
[1746815669134,0.28574684,103290.0,103280.0,3.28785393]
[1746815669827,0.21179,103290.0,103280.0,3.28785393]
[1746815670224,0.05179,103290.0,103280.0,3.28785393]
[1746815671134,0.21179,103290.0,103280.0,3.28785393]
[1746815672333,0.05179,103290.0,103280.0,3.28785393]
[1746815673539,0.12574684,103290.0,103280.0,3.28785393]
[1746815674137,0.28574684,103290.0,103280.0,3.28785393]
[1746815674941,0.35074684,103290.0,103280.0,3.28785393]
[1746815675237,0.35074684,103290.0,103280.0,3.41601393]
[1746815676131,0.19074684,103290.0,103280.0,1.91601393]
[1746815677133,0.35074684,103290.0,103280.0,1.91601393]
[1746815679636,0.12684867,103300.0,103280.0,2.0701307]
[1746815679930,0.14822963,103340.0,103330.0,0.1935449]
[1746815680131,0.11672963,103340.0,103330.0,1.55107616]
[1746815680335,0.11672963,103340.0,103330.0,1.85491053]
[1746815680530,0.11672963,103340.0,103330.0,1.95173001]
[1746815680730,0.06535275,103340.0,103330.0,1.95173001]
[1746815681730,0.06535275,103340.0,103330.0,2.00911295]
[1746815682139,0.06535275,103340.0,103330.0,1.84911295]
[1746815682642,0.06535275,103340.0,103330.0,1.85011295]
[1746815682941,0.06535275,103340.0,103330.0,1.85111295]
[1746815687040,0.06535275,103340.0,103330.0,1.59491295]
[1746815687231,0.06535275,103340.0,103330.0,1.86067164]
[1746815687827,0.06535275,103340.0,103330.0,1.82877164]
[1746815688035,0.06535275,103340.0,103330.0,1.47172307]
[1746815688236,0.22535275,103340.0,103330.0,1.63897164]
[1746815689034,0.22535275,103340.0,103330.0,1.51089164]
[1746815689236,0.22535275,103340.0,103330.0,1.63897164]
[1746815689540,0.41887895,103340.0,103330.0,1.62929295]
[1746815689744,0.22535275,103340.0,103330.0,1.62929295]
[1746815691741,0.22535275,103340.0,103330.0,1.63885231]
[1746815691933,0.22535275,103340.0,103330.0,0.91725231]
[1746815692130,0.22535275,103340.0,103330.0,1.27805231]
[1746815694343,0.2902839,103350.0,103340.0,0.1935262]
[1746815694640,0.2902839,103350.0,103340.0,0.8943262]
[1746815694641,0.3386648,103350.0,103340.0,0.8943262]
[1746815694942,0.3386648,103350.0,103340.0,0.99108946]
[1746815695137,0.76267737,103350.0,103340.0,0.34]
[1746815695543,0.5954288,103350.0,103340.0,0.5335262]
[1746815697845,0.6871288,103350.0,103340.0,0.5335262]
[1746815698144,0.6871288,103350.0,103340.0,0.54838842]
[1746815700744,0.5903648,103350.0,103340.0,0.54838842]
[1746815701046,0.6871288,103350.0,103340.0,0.54838842]
[1746815701744,0.85437737,103350.0,103340.0,0.54838842]
[1746815702646,0.6871288,103350.0,103340.0,0.54838842]
[1746815703439,0.6871288,103350.0,103340.0,0.58108842]
[1746815703747,0.5903648,103350.0,103340.0,0.58108842]
[1746815704541,0.5903648,103350.0,103340.0,0.54838842]
[1746815705445,0.5903648,103350.0,103340.0,0.57858842]
[1746815705746,0.70015304,103350.0,103340.0,0.57858842]
[1746815707948,1.06095304,103350.0,103340.0,0.57858842]
[1746815708145,1.18883304,103350.0,103340.0,0.02958839]
[1746815708444,1.18883304,103350.0,103340.0,0.01486222]
[1746815708649,1.22173304,103350.0,103340.0,0.32]
[1746815710350,1.34486241,103350.0,103340.0,0.32]
[1746815710547,1.44162641,103350.0,103340.0,0.32]
[1746815710854,0.1935449,103330.0,103320.0,0.2249636]
[1746815711042,0.30333314,103330.0,103320.0,0.61969131]
[1746815711242,0.39723314,103330.0,103320.0,0.61969131]
[1746815711651,0.2874449,103330.0,103320.0,0.61969131]
[1746815712242,0.4474449,103330.0,103320.0,0.65358587]
[1746815712651,0.4474449,103330.0,103320.0,0.6388636]
[1746815713049,0.4474449,103330.0,103320.0,1.0006636]
[1746815713250,0.4474449,103330.0,103320.0,0.6398636]
[1746815713447,0.57057427,103330.0,103320.0,0.6398636]
[1746815713951,0.57057427,103330.0,103320.0,0.6388636]
[1746815714152,0.69841427,103330.0,103320.0,0.6388636]
[1746815714449,0.69841427,103330.0,103320.0,0.6378636]
[1746815715251,0.80820251,103330.0,103320.0,0.6378636]
[1746815715551,0.80820251,103330.0,103320.0,0.65279671]
[1746815716151,1.04587314,103330.0,103320.0,0.42633311]
[1746815716344,1.14265314,103330.0,103320.0,0.5735636]
[1746815716653,0.78185314,103330.0,103320.0,0.5735636]
[1746815716851,0.78185314,103330.0,103320.0,0.6067636]
[1746815717258,1.14265314,103330.0,103320.0,0.6067636]
[1746815718051,1.14465314,103330.0,103320.0,0.6067636]
[1746815719056,1.39186547,103330.0,103320.0,0.09]
[1746815719255,0.1935636,103320.0,103310.0,0.032]
[1746815719452,0.83994008,103320.0,103310.0,0.352]
[1746815719754,0.93673208,103320.0,103310.0,0.352]
[1746815720161,1.09673208,103320.0,103310.0,0.352]
[1746815721155,1.09673208,103320.0,103310.0,0.032]
[1746815721343,1.09673208,103320.0,103310.0,0.122]
[1746815721553,1.09673208,103320.0,103310.0,0.09]
[1746815721746,0.1935824,103310.0,103300.0,0.2567984]
[1746815721945,0.76207064,103310.0,103300.0,0.5767984]
[1746815722153,1.17779064,103310.0,103300.0,0.5867984]
[1746815722348,1.0680024,103310.0,103300.0,0.3932]
[1746815722549,1.17779064,103310.0,103300.0,0.5868011]
[1746815723154,1.0680024,103310.0,103300.0,0.5868011]
[1746815723356,1.17779064,103310.0,103300.0,0.5868011]
[1746815725057,1.18504064,103310.0,103300.0,0.5868011]
[1746815730662,1.18504064,103310.0,103300.0,0.60173128]
[1746815731055,0.82424064,103310.0,103300.0,0.60173128]
[1746815731249,1.18504064,103310.0,103300.0,0.40813018]
[1746815731561,1.18504064,103310.0,103300.0,0.6368011]
[1746815735962,0.56852064,103310.0,103300.0,0.65173623]
[1746815736156,0.3608324,103310.0,103300.0,1.12232447]
[1746815736360,0.3608324,103310.0,103300.0,1.2191252]
[1746815739267,0.2008324,103310.0,103300.0,1.2191252]
[1746815741460,0.2329324,103310.0,103300.0,1.2191252]
[1746815741656,0.34272064,103310.0,103300.0,1.10933696]
[1746815741866,0.37392064,103310.0,103300.0,1.10933696]
[1746815742168,0.53392064,103310.0,103300.0,1.10933696]
[1746815742866,0.53392064,103310.0,103300.0,1.10935661]
[1746815743064,0.4241324,103310.0,103300.0,1.10935661]
[1746815746470,0.4241324,103310.0,103300.0,1.1093666]
[1746815748372,0.4241324,103310.0,103300.0,1.10936467]
[1746815748573,0.4570324,103310.0,103300.0,1.14256467]
[1746815748869,0.56682064,103310.0,103300.0,1.14256467]
[1746815749072,0.56682064,103310.0,103300.0,0.68496394]
[1746815749770,0.4570324,103310.0,103300.0,0.68496394]
[1746815749979,0.56682064,103310.0,103300.0,0.68496394]
[1746815750375,0.56682064,103310.0,103300.0,0.49136284]
[1746815750672,0.92762064,103310.0,103300.0,0.05696284]
[1746815750877,1.16710888,103310.0,103300.0,0.02496284]
[1746815751774,1.11501655,103310.0,103300.0,0.02496284]
[1746815752167,1.11501655,103310.0,103300.0,0.02497051]
[1746815752368,1.11501655,103310.0,103300.0,0.01]
[1746815753869,0.1936011,103300.0,103290.0,0.00396922]
[1746815754069,1.04016525,103300.0,103290.0,0.00396922]
[1746815754276,1.29697725,103300.0,103290.0,0.00396922]
[1746815754876,1.29697725,103300.0,103290.0,0.00696922]
[1746815756482,1.1294931,103300.0,103290.0,0.36696922]
[1746815756670,1.32987725,103300.0,103290.0,0.39696922]
[1746815756870,1.32987725,103300.0,103290.0,0.03696922]
[1746815758571,1.26466525,103300.0,103290.0,0.03696922]
[1746815761473,1.26466525,103300.0,103290.0,0.00696922]
[1746815761672,1.36147725,103300.0,103290.0,0.00696922]
[1746815761877,1.5289614,103300.0,103290.0,0.00696922]
[1746815762071,1.36147725,103300.0,103290.0,0.00696922]
[1746815763378,1.50877901,103300.0,103290.0,0.00696922]
[1746815765778,1.47587901,103300.0,103290.0,0.00696922]
[1746815765977,1.82587901,103300.0,103290.0,0.00696922]
[1746815766775,1.99336316,103300.0,103290.0,2e-08]
[1746815766972,0.1936386,103280.0,103270.0,0.0304]
[1746815767167,0.84660275,103280.0,103270.0,0.4229]
[1746815767372,1.30360275,103280.0,103270.0,0.4229]
[1746815768174,1.31519029,103280.0,103270.0,0.3925]
[1746815768874,1.59719029,103280.0,103270.0,0.06716794]
[1746815769075,1.59719029,103280.0,103270.0,0.03466794]
[1746815769275,1.59719029,103280.0,103270.0,0.37]
[1746815769477,0.14730176,103300.0,103290.0,0.1936199]
[1746815769781,0.09740176,103300.0,103290.0,1.28963398]
[1746815770081,0.09740176,103300.0,103290.0,1.9855033]
[1746815770675,0.10040176,103300.0,103290.0,1.9855033]
[1746815770873,0.10040176,103300.0,103290.0,2.15398745]
[1746815771183,0.10040176,103300.0,103290.0,1.74145967]
[1746815771375,0.09740176,103300.0,103290.0,1.74145967]
[1746815771575,0.09740176,103300.0,103290.0,1.74245967]
[1746815771877,0.09740176,103300.0,103290.0,1.72764916]
[1746815772072,0.09740176,103300.0,103290.0,1.74246104]
[1746815772774,0.09740176,103300.0,103290.0,1.61482104]
[1746815772973,0.45848701,103300.0,103290.0,0.89322104]
[1746815773175,1.18794745,103300.0,103290.0,0.58796041]
[1746815773477,1.41208745,103300.0,103290.0,0.58796041]
[1746815773682,1.05128745,103300.0,103290.0,0.58796041]
[1746815773978,1.05128745,103300.0,103290.0,0.78158031]
[1746815774180,0.95388569,103300.0,103290.0,0.62058031]
[1746815774580,0.92258569,103300.0,103290.0,0.62058031]
[1746815774982,0.92258569,103300.0,103290.0,0.61958031]
[1746815775173,0.75510154,103300.0,103290.0,0.62058031]
[1746815775482,0.92258569,103300.0,103290.0,0.42696041]
[1746815775784,1.31528569,103300.0,103290.0,0.42696041]
[1746815776174,1.47528569,103300.0,103290.0,0.62058031]
[1746815776983,1.30780154,103300.0,103290.0,0.62058031]
[1746815777184,1.14780154,103300.0,103290.0,0.62058031]
[1746815777874,1.14780154,103300.0,103290.0,0.63540834]
[1746815779377,1.14780154,103300.0,103290.0,0.63541232]
[1746815779886,1.14780154,103300.0,103290.0,0.62058031]
[1746815780383,1.14780154,103300.0,103290.0,0.63541593]
[1746815780583,1.14780154,103300.0,103290.0,0.62058031]
[1746815781184,1.14780154,103300.0,103290.0,0.63541658]
[1746815781782,1.31528569,103300.0,103290.0,0.42696041]
[1746815781989,1.31528569,103300.0,103290.0,0.62058031]
[1746815782181,1.47528569,103300.0,103290.0,0.62058031]
[1746815782586,1.47528569,103300.0,103290.0,0.42696041]
[1746815782782,1.47528569,103300.0,103290.0,0.62058031]
[1746815783183,1.47528569,103300.0,103290.0,0.63541755]
[1746815784091,1.47528569,103300.0,103290.0,0.62058031]
[1746815784390,1.47528569,103300.0,103290.0,0.63541809]
[1746815784685,1.47528569,103300.0,103290.0,0.63541811]
[1746815785293,1.31528569,103300.0,103290.0,0.63541804]
[1746815785988,1.14780154,103300.0,103290.0,0.63541804]
[1746815786192,1.14780154,103300.0,103290.0,0.62058031]
[1746815786381,1.14780154,103300.0,103290.0,0.63541803]
[1746815787082,1.14780154,103300.0,103290.0,0.62058031]
[1746815787287,1.14780154,103300.0,103290.0,0.63541779]
[1746815787986,1.14780154,103300.0,103290.0,0.62058031]
[1746815788184,1.11590154,103300.0,103290.0,0.62058031]
[1746815788382,1.12316154,103300.0,103290.0,0.62058031]
[1746815789687,0.2340611,103300.0,103290.0,1.24567456]
[1746815789991,0.2340611,103300.0,103290.0,1.26051014]
[1746815790289,0.2340611,103300.0,103290.0,1.25302599]
[1746815791187,0.2340611,103300.0,103290.0,1.09302599]
[1746815791887,0.00726,103300.0,103290.0,1.09302599]
[1746815792086,0.2008611,103300.0,103290.0,1.26051014]
[1746815792286,0.2008611,103300.0,103290.0,1.42051014]
[1746815792688,0.00726,103300.0,103290.0,1.42051014]
[1746815792884,0.2008611,103300.0,103290.0,1.42051014]
[1746815793297,0.2008611,103300.0,103290.0,1.42051071]
[1746815793784,0.0318,103320.0,103310.0,0.1935824]
[1746815793989,0.2267636,103320.0,103310.0,1.09670033]
[1746815794193,0.2267636,103320.0,103310.0,1.32210033]
[1746815794392,0.78605729,103330.0,103320.0,0.1935636]
[1746815794695,0.69161729,103330.0,103320.0,0.6205636]
[1746815794996,0.70161729,103330.0,103320.0,0.71735496]
[1746815795202,0.64183769,103330.0,103320.0,0.71735496]
[1746815795792,0.64583769,103330.0,103320.0,0.71735496]
[1746815795992,0.63583769,103330.0,103320.0,0.71735496]
[1746815796300,0.63583769,103330.0,103320.0,0.72690251]
[1746815796498,0.50703769,103330.0,103320.0,0.72690251]
[1746815796694,0.15570199,103330.0,103320.0,1.43749036]
[1746815796894,0.34924689,103330.0,103320.0,1.27000621]
[1746815797094,0.34924689,103330.0,103320.0,1.43000621]
[1746815797697,0.34524689,103330.0,103320.0,1.43000621]
[1746815797994,0.34924689,103330.0,103320.0,1.43000621]
[1746815798199,0.34524689,103330.0,103320.0,1.43000621]
[1746815798400,0.34924689,103330.0,103320.0,1.43000621]
[1746815799000,0.34524689,103330.0,103320.0,1.43000621]
[1746815799200,0.1975449,103330.0,103320.0,1.43000621]
[1746815799393,0.004,103330.0,103320.0,1.43000621]
[1746815799593,0.004,103330.0,103320.0,1.59749036]
[1746815799793,0.004,103330.0,103320.0,1.72665036]
[1746815799995,0.03870262,103340.0,103330.0,0.1935449]
[1746815800197,0.00870262,103340.0,103330.0,1.4210486]
[1746815800595,0.00870262,103340.0,103330.0,1.51783059]
[1746815801203,0.01070262,103340.0,103330.0,1.35783059]
[1746815801402,0.01270262,103340.0,103330.0,1.35783059]
[1746815802295,0.20622882,103340.0,103330.0,1.35783059]